fUST/lending_fUST_20250526
["ID","MTS","AMOUNT","RATE_DAILY","PERIOD"]
[362335599,1748203832991,-430.0,0.00019178,2]
[362335602,1748203833001,-430.0,0.00019178,2]
[362335604,1748203833011,-401.93743419,0.00019178,2]
[362335606,1748203833025,-107.95256581,0.00019178,2]
[362335608,1748203833036,-430.0,0.00019178,2]
[362335610,1748203833046,-430.0,0.00019178,2]
[362335612,1748203833056,-430.0,0.00019178,2]
[362335614,1748203833065,-430.0,0.00019178,2]
[362335617,1748203833075,-788.98286392,0.00019178,2]
[362336074,1748203837848,-1979.16713608,0.00019178,2]
[362336075,1748203837859,-430.0,0.00019178,2]
[362336076,1748203837870,-458.9,0.00019178,2]
[362336077,1748203837880,-1294.99,0.00019178,2]
[362336078,1748203837892,-178.948429,0.00019178,2]
[362336079,1748203837903,-300.0,0.00019223,2]
[362336080,1748203837913,-160.0,0.00019224,2]
[362336082,1748203837922,-229.13142565,0.00019224,2]
[362336084,1748203837932,-160.0,0.00019224,2]
[362336086,1748203837942,-423.00916439,0.00019224,2]
[362336088,1748203837951,-11220.94884488,0.00019224,2]
[362336090,1748203837965,-1431.29673715,0.00019224,2]
[362336091,1748203837975,-160.0,0.00019224,2]
[362336093,1748203837985,-894.64583333,0.00019224,2]
[362336095,1748203837995,-212.55626673,0.00019224,2]
[362336097,1748203838004,-881.22863858,0.00019442,3]
[362336099,1748203838016,-13.41719475,0.00019442,3]
[362336101,1748203838026,-940.78824361,0.00019442,3]
[362336103,1748203838039,-1998.49179696,0.00019442,3]
[362336104,1748203838051,-674.66763498,0.00019442,3]
[362336105,1748203838067,-3834.35364057,0.00019442,3]
[362336107,1748203838078,-891.0,0.00019442,3]
[362336109,1748203838091,-2641.49886231,0.00019442,3]
[362336112,1748203838107,-1671.4454036,0.00019442,3]
[362336113,1748203838117,-430.0,0.00019452,2]
[362336114,1748203838127,-430.0,0.00019452,2]
[362336115,1748203838136,-1014.17,0.00019452,2]
[362336116,1748203838146,-430.0,0.00019452,2]
[362336117,1748203838155,-430.0,0.00019452,2]
[362336118,1748203838165,-430.0,0.00019452,2]
[362336119,1748203838175,-430.0,0.00019452,2]
[362336120,1748203838185,-430.0,0.00019452,2]
[362336121,1748203838195,-430.0,0.00019452,2]
[362336122,1748203838205,-430.0,0.00019452,2]
[362336123,1748203838214,-430.0,0.00019452,2]
[362336124,1748203838224,-430.0,0.00019452,2]
[362336125,1748203838233,-430.0,0.00019452,2]
[362336126,1748203838243,-430.0,0.00019452,2]
[362336127,1748203838253,-774.31,0.00019452,2]
[362336128,1748203838263,-461.45,0.00019452,2]
[362336130,1748203838273,-430.0,0.00019452,2]
[362336132,1748203838283,-430.0,0.00019452,2]
[362336134,1748203838292,-430.0,0.00019452,2]
[362336136,1748203838302,-816.82,0.00019452,2]
[362336138,1748203838312,-430.0,0.00019452,2]
[362336140,1748203838322,-1394.19,0.00019452,2]
[362336142,1748203838332,-430.0,0.00019452,2]
[362336145,1748203838348,-1537.31,0.00019452,2]
[362336147,1748203838359,-625.99,0.00019452,2]
[362336149,1748203838369,-112.8159163,0.00019452,2]
[362336152,1748203838383,-639.6540837,0.00019452,2]
[362336154,1748203838393,-430.0,0.00019452,2]
[362336156,1748203838403,-430.0,0.00019452,2]
[362336158,1748203838412,-476.3,0.00019452,2]
[362336160,1748203838423,-430.0,0.00019452,2]
[362336162,1748203838432,-430.0,0.00019452,2]
[362336164,1748203838443,-403.41967766,0.00019452,2]
[362336166,1748203838454,-430.0,0.00019452,2]
[362336168,1748203838464,-916.47881114,0.00019452,2]
[362336170,1748203838476,-35.43118886,0.00019452,2]
[362336172,1748203838486,-257.90743087,0.00019452,2]
[362336174,1748203838498,-172.09256913,0.00019452,2]
[362336177,1748203838508,-430.0,0.00019452,2]
[362336179,1748203838519,-430.0,0.00019452,2]
[362336181,1748203838529,-430.0,0.00019452,2]
[362336183,1748203838539,-430.0,0.00019452,2]
[362336184,1748203838549,-430.0,0.00019452,2]
[362336185,1748203838560,-810.74,0.00019452,2]
[362336186,1748203838570,-439.41,0.00019452,2]
[362336187,1748203838579,-430.0,0.00019452,2]
[362336190,1748203838589,-430.0,0.00019452,2]
[362336191,1748203838600,-339.61015094,0.00019452,2]
[362336193,1748203838613,-90.38984906,0.00019452,2]
[362336195,1748203838622,-1005.95,0.00019452,2]
[362336197,1748203838632,-430.0,0.00019452,2]
[362336199,1748203838642,-430.0,0.00019452,2]
[362336201,1748203838651,-562.28,0.00019452,2]
[362336203,1748203838660,-430.0,0.00019452,2]
[362336205,1748203838670,-173.56774904,0.00019452,2]
[362336363,1748203840189,-430.0,0.00019178,2]
[362336365,1748203840199,-430.0,0.00019178,2]
[362336367,1748203840209,-1758.45225096,0.00019452,2]
[362336369,1748203840219,-430.0,0.00019452,2]
[362336371,1748203840233,-430.0,0.00019452,2]
[362336373,1748203840243,-430.0,0.00019452,2]
[362336375,1748203840254,-430.0,0.00019452,2]
[362336377,1748203840264,-430.0,0.00019452,2]
[362336379,1748203840273,-1199.99,0.00019452,2]
[362336381,1748203840283,-430.0,0.00019452,2]
[362336383,1748203840294,-1723.73,0.00019452,2]
[362336385,1748203840304,-430.0,0.00019452,2]
[362336387,1748203840318,-494.16,0.00019452,2]
[362336390,1748203840328,-430.0,0.00019452,2]
[362336391,1748203840338,-430.0,0.00019452,2]
[362336394,1748203840348,-509.89,0.00019452,2]
[362336395,1748203840358,-430.0,0.00019452,2]
[362336398,1748203840373,-430.0,0.00019452,2]
[362336400,1748203840389,-430.0,0.00019452,2]
[362336402,1748203840404,-430.0,0.00019452,2]
[362336404,1748203840414,-2768.15,0.00019452,2]
[362336406,1748203840423,-430.0,0.00019452,2]
[362336408,1748203840433,-458.9,0.00019452,2]
[362336410,1748203840446,-814.47019043,0.00019452,2]
[362336664,1748203843055,-480.51980957,0.00019452,2]
[362336666,1748203843066,-430.0,0.00019452,2]
[362336668,1748203843076,-430.0,0.00019452,2]
[362336670,1748203843086,-541.599205,0.00019599,2]
[362336672,1748203843096,-472.06,0.0001967,3]
[362336674,1748203843105,-708.09,0.0001967,3]
[362336676,1748203843114,-37.73098543,0.00019676,3]
[362336678,1748203843126,-790.0325986,0.00019676,3]
[362336681,1748203843143,-116.34641597,0.00019676,3]
[362336683,1748203843152,-236.03,0.00019676,3]
[362336685,1748203843162,-420.0,0.0001968,2]
[362336687,1748203843171,-28.15223572,0.00019686,3]
[362336690,1748203843183,-1860.07776428,0.00019686,3]
[362336692,1748203843193,-2130.14073091,0.00019696,3]
[362336694,1748203843203,-3776.46,0.00019696,3]
[362336696,1748203843213,-5067.36730524,0.00019706,2]
[362336698,1748203843223,-7552.92,0.00019706,3]
[362336700,1748203843232,-430.0,0.00019726,2]
[362336702,1748203843242,-291.88824171,0.00019726,2]
[362336705,1748203843252,-1014.17,0.00019726,2]
[362336707,1748203843262,-430.0,0.00019726,2]
[362336709,1748203843272,-430.0,0.00019726,2]
[362336711,1748203843281,-430.0,0.00019726,2]
[362336713,1748203843291,-430.0,0.00019726,2]
[362336715,1748203843300,-430.0,0.00019726,2]
[362336717,1748203843310,-430.0,0.00019726,2]
[362336719,1748203843320,-430.0,0.00019726,2]
[362336721,1748203843330,-430.0,0.00019726,2]
[362336723,1748203843340,-430.0,0.00019726,2]
[362336725,1748203843350,-430.0,0.00019726,2]
[362336727,1748203843362,-774.31,0.00019726,2]
[362336729,1748203843371,-461.45,0.00019726,2]
[362336731,1748203843380,-430.0,0.00019726,2]
[362336733,1748203843390,-430.0,0.00019726,2]
[362336735,1748203843399,-430.0,0.00019726,2]
[362336737,1748203843409,-816.82,0.00019726,2]
[362336739,1748203843419,-430.0,0.00019726,2]
[362336742,1748203843430,-1394.19,0.00019726,2]
[362336744,1748203843439,-430.0,0.00019726,2]
[362336746,1748203843449,-1537.31,0.00019726,2]
[362336748,1748203843459,-625.99,0.00019726,2]
[362336750,1748203843468,-752.47,0.00019726,2]
[362336752,1748203843478,-430.0,0.00019726,2]
[362336754,1748203843487,-430.0,0.00019726,2]
[362336756,1748203843497,-261.00187631,0.00019726,2]
[362337012,1748203846550,-0.24525979,0.00019726,2]
[362337015,1748203846563,-215.0528639,0.00019726,2]
[362337017,1748203846572,-430.0,0.00019726,2]
[362337019,1748203846582,-430.0,0.00019726,2]
[362337021,1748203846592,-430.0,0.00019726,2]
[362337023,1748203846602,-430.0,0.00019726,2]
[362337025,1748203846612,-951.91,0.00019726,2]
[362337027,1748203846623,-430.0,0.00019726,2]
[362337029,1748203846633,-430.0,0.00019726,2]
[362337031,1748203846643,-430.0,0.00019726,2]
[362337033,1748203846653,-230.90890966,0.00019726,2]
[362337036,1748203846665,-199.09109034,0.00019726,2]
[362337038,1748203846674,-430.0,0.00019726,2]
[362337040,1748203846684,-810.74,0.00019726,2]
[362337042,1748203846694,-439.41,0.00019726,2]
[362337044,1748203846707,-430.0,0.00019726,2]
[362337046,1748203846716,-430.0,0.00019726,2]
[362337048,1748203846726,-430.0,0.00019726,2]
[362337050,1748203846735,-1005.95,0.00019726,2]
[362337052,1748203846745,-430.0,0.00019726,2]
[362337054,1748203846754,-430.0,0.00019726,2]
[362337056,1748203846764,-562.28,0.00019726,2]
[362337058,1748203846773,-430.0,0.00019726,2]
[362337060,1748203846782,-1932.02,0.00019726,2]
[362337062,1748203846794,-430.0,0.00019726,2]
[362337064,1748203846804,-430.0,0.00019726,2]
[362337066,1748203846814,-430.0,0.00019726,2]
[362337068,1748203846823,-430.0,0.00019726,2]
[362337070,1748203846831,-430.0,0.00019726,2]
[362337072,1748203846841,-1199.99,0.00019726,2]
[362337074,1748203846850,-430.0,0.00019726,2]
[362337076,1748203846860,-1723.73,0.00019726,2]
[362337093,1748203846869,-430.0,0.00019726,2]
[362337095,1748203847032,-494.16,0.00019726,2]
[362337097,1748203847043,-430.0,0.00019726,2]
[362337099,1748203847053,-430.0,0.00019726,2]
[362337101,1748203847062,-509.89,0.00019726,2]
[362337103,1748203847072,-430.0,0.00019726,2]
[362337106,1748203847082,-430.0,0.00019726,2]
[362337108,1748203847092,-430.0,0.00019726,2]
[362337110,1748203847101,-430.0,0.00019726,2]
[362337112,1748203847111,-2768.15,0.00019726,2]
[362337114,1748203847120,-430.0,0.00019726,2]
[362337116,1748203847129,-458.9,0.00019726,2]
[362337118,1748203847140,-692.72726471,0.00019726,2]
[362337228,1748203937003,-168.28,0.000161,2]
[362337229,1748203937031,-67.72,0.00017338,2]
[362337231,1748204003371,-155.41,0.00016107,2]
[362337232,1748204003398,-144.59,0.00017346,2]
[362337235,1748204061577,7232.05077287,0.00014,2]
[362337236,1748204061599,2767.94922713,0.00014,2]
[362337239,1748204526911,-189.0,0.00017342,2]
[362337243,1748204760516,463.456279,0.00013699,2]
[362337509,1748205037939,-182.79,0.00017352,2]
[362337511,1748205037949,-89.7530213,0.00018081,2]
[362337514,1748205037964,-410.2469787,0.00018081,2]
[362337516,1748205037973,-228.49,0.00018591,2]
[362337518,1748205037982,-5785.60748241,0.000187,2]
[362337520,1748205037991,-1200.0,0.00019076,2]
[362337522,1748205038002,-1419.99733155,0.00019077,2]
[362337524,1748205038012,-249.07288808,0.00019078,2]
[362337526,1748205038021,-207.4,0.00019165,2]
[362337528,1748205038030,-300.0,0.00019173,2]
[362337530,1748205038040,-300.0,0.00019173,2]
[362337532,1748205038050,-189.0,0.00019173,2]
[362337535,1748205038060,-159.92764735,0.00019174,2]
[362337537,1748205038070,-169.2229285,0.00019174,2]
[362337539,1748205038080,-209.07201647,0.00019174,2]
[362337541,1748205038090,-500.0,0.00019174,2]
[362337543,1748205038099,-500.0,0.00019174,2]
[362337545,1748205038108,-500.0,0.00019174,2]
[362337547,1748205038118,-500.0,0.00019174,2]
[362337549,1748205038127,-500.0,0.00019174,2]
[362337551,1748205038137,-363.35313468,0.00019174,2]
[362337553,1748205038147,-500.0,0.00019174,2]
[362337555,1748205038156,-500.0,0.00019174,2]
[362337557,1748205038166,-500.0,0.00019174,2]
[362337559,1748205038176,-500.0,0.00019174,2]
[362337561,1748205038186,-500.0,0.00019174,2]
[362337563,1748205038195,-5563.07252959,0.00019175,2]
[362337566,1748205038211,-3512.02361223,0.00019175,2]
[362338046,1748205043095,-4206.8744175,0.00019175,2]
[362338312,1748205046158,-17352.52180136,0.00019175,2]
[362339835,1748206232332,-440.283465,0.00013699,2]
[362339837,1748206232343,-202.87,0.00015232,2]
[362339839,1748206232353,-304.3,0.00016501,2]
[362339842,1748206232363,-405.74,0.00017771,2]
[362339844,1748206232372,-500.0,0.00018081,2]
[362339846,1748206232382,-4322.9786549,0.00018126,2]
[362339848,1748206232391,-257.41425641,0.000189,2]
[362339851,1748206232401,-207.4,0.00018958,2]
[362339853,1748206232410,-507.17,0.0001904,2]
[362339856,1748206232420,-1242.49766515,0.00019066,2]
[362339859,1748206232429,-543.0,0.00019099,2]
[362339862,1748206232439,-2220.78171055,0.000191,2]
[362339865,1748206232449,-300.0,0.00019162,2]
[362339868,1748206232458,-595.92812608,0.00019165,2]
[362339871,1748206232467,-2533.68365262,0.00019166,2]
[362339873,1748206232477,-3156.3114179,0.00019166,3]
[362339875,1748206232489,-548.1912886,0.00019166,3]
[362339892,1748206232638,-8947.74287553,0.00019166,3]
[362339894,1748206232648,-894.64583333,0.00019176,3]
[362339896,1748206232657,-314.64711426,0.00019177,3]
[362339898,1748206232667,-500.0,0.00019177,2]
[362339900,1748206232675,-14047.43109583,0.00019178,3]
[362339902,1748206232685,-430.0,0.00019178,2]
[362339903,1748206232694,-430.0,0.00019178,2]
[362339905,1748206232704,-302.28,0.00019178,2]
[362339906,1748206232713,-430.0,0.00019178,2]
[362339908,1748206232722,-264.47280464,0.00019178,2]
[362339910,1748206232731,-430.0,0.00019178,2]
[362339912,1748206232741,-887.4,0.00019178,2]
[362339914,1748206232751,-430.0,0.00019178,2]
[362339916,1748206232761,-430.0,0.00019178,2]
[362339918,1748206232770,-430.0,0.00019178,2]
[362339920,1748206232779,-430.0,0.00019178,2]
[362339922,1748206232789,-430.0,0.00019178,2]
[362339924,1748206232798,-430.0,0.00019178,2]
[362339926,1748206232808,-430.0,0.00019178,2]
[362339928,1748206232818,-430.0,0.00019178,2]
[362339930,1748206232827,-430.0,0.00019178,2]
[362339932,1748206232837,-787.32,0.00019178,2]
[362339934,1748206232847,-430.0,0.00019178,2]
[362339937,1748206232856,-430.0,0.00019178,2]
[362339939,1748206232866,-658.41,0.00019178,2]
[362339940,1748206232875,-430.0,0.00019178,2]
[362339942,1748206232884,-430.0,0.00019178,2]
[362339944,1748206232893,-677.52,0.00019178,2]
[362339947,1748206232903,-430.0,0.00019178,2]
[362339949,1748206232913,-430.0,0.00019178,2]
[362339950,1748206232922,-430.0,0.00019178,2]
[362339953,1748206232932,-430.0,0.00019178,2]
[362339955,1748206232941,-1219.91,0.00019178,2]
[362339957,1748206232950,-430.0,0.00019178,2]
[362339959,1748206232960,-430.0,0.00019178,2]
[362339960,1748206232969,-430.0,0.00019178,2]
[362339963,1748206232979,-10.38582383,0.00019178,2]
[362340233,1748206238042,-537.35417617,0.00019178,2]
[362340235,1748206238052,-71.12761215,0.00019178,2]
[362340245,1748206238155,-358.87238785,0.00019178,2]
[362340246,1748206238165,-94.8000476,0.00019178,2]
[362340257,1748206240397,-693.5499524,0.00019178,2]
[362340258,1748206240407,-430.0,0.00019178,2]
[362340259,1748206240418,-832.92,0.00019178,2]
[362340260,1748206240428,-430.0,0.00019178,2]
[362340261,1748206240439,-430.0,0.00019178,2]
[362340262,1748206240448,-430.0,0.00019178,2]
[362340263,1748206240457,-430.0,0.00019178,2]
[362340264,1748206240467,-430.0,0.00019178,2]
[362340265,1748206240476,-430.0,0.00019178,2]
[362340266,1748206240486,-430.0,0.00019178,2]
[362340267,1748206240495,-492.0,0.00019178,2]
[362340268,1748206240505,-430.0,0.00019178,2]
[362340269,1748206240515,-430.0,0.00019178,2]
[362340270,1748206240528,-430.0,0.00019178,2]
[362340271,1748206240538,-970.53,0.00019178,2]
[362340272,1748206240548,-430.0,0.00019178,2]
[362340273,1748206240558,-430.0,0.00019178,2]
[362340274,1748206240567,-2181.56,0.00019178,2]
[362340275,1748206240576,-1049.99,0.00019178,2]
[362340276,1748206240586,-478.23,0.00019178,2]
[362340277,1748206240595,-430.0,0.00019178,2]
[362340278,1748206240605,-1657.05,0.00019178,2]
[362340279,1748206240614,-430.0,0.00019178,2]
[362340280,1748206240623,-430.0,0.00019178,2]
[362340281,1748206240633,-430.0,0.00019178,2]
[362340282,1748206240642,-430.0,0.00019178,2]
[362340283,1748206240652,-430.0,0.00019178,2]
[362340284,1748206240662,-430.0,0.00019178,2]
[362340285,1748206240672,-430.0,0.00019178,2]
[362340286,1748206240683,-475.0,0.00019178,2]
[362340287,1748206240692,-430.0,0.00019178,2]
[362340288,1748206240703,-430.0,0.00019178,2]
[362340289,1748206240712,-430.0,0.00019178,2]
[362340290,1748206240722,-430.0,0.00019178,2]
[362340291,1748206240732,-2678.88,0.00019178,2]
[362340292,1748206240741,-430.0,0.00019178,2]
[362340293,1748206240752,-1281.54,0.00019178,2]
[362340294,1748206240761,-430.0,0.00019178,2]
[362340295,1748206240771,-430.0,0.00019178,2]
[362340296,1748206240780,-1345.15,0.00019178,2]
[362340297,1748206240789,-696.54,0.00019178,2]
[362340298,1748206240799,-430.0,0.00019178,2]
[362340299,1748206240810,-430.0,0.00019178,2]
[362340300,1748206240820,-430.0,0.00019178,2]
[362340301,1748206240829,-430.0,0.00019178,2]
[362340302,1748206240838,-390.52297894,0.00019178,2]
[362340303,1748206240848,-430.0,0.00019178,2]
[362340304,1748206240858,-430.0,0.00019178,2]
[362340305,1748206240867,-10774.54291745,0.00019178,2]
[362340545,1748206355784,-151.23,0.00015226,2]
[362340546,1748206355809,-148.77,0.00016495,2]
[362340549,1748206421246,-210.48,0.00015745,2]
[362340550,1748206421271,-219.52,0.00016956,2]
[362340551,1748206490782,-187.02,0.00015749,2]
[362340552,1748206490806,-242.98,0.00016961,2]
[362340553,1748206555672,-163.57,0.00015757,2]
[362340554,1748206555701,-73.43,0.0001697,2]
[362340556,1748206622261,-150.64,0.00015758,2]
[362340557,1748206622286,-149.36,0.0001697,2]
[362340558,1748206749196,-196.2,0.00016991,2]
[362340559,1748206749218,-163.0,0.00017863,3]
[362340560,1748206749238,-172.267779,0.0001799,2]
[362340561,1748206749258,-500.0,0.00018081,2]
[362340562,1748206749285,-245.25,0.00018204,2]
[362340563,1748206749306,-171.60950428,0.000189,2]
[362340564,1748206749328,-237.3846354,0.00019115,2]
[362340565,1748206749348,-800.0,0.00019129,2]
[362340566,1748206749370,-207.4,0.00019167,2]
[362340567,1748206749391,-300.0,0.00019176,2]
[362340568,1748206749412,-15450.88808132,0.00019177,2]
[362340578,1748206908910,-219.62931841,0.00013699,2]
[362340579,1748206910839,-198.63997259,0.00013699,2]
[362340581,1748206948000,-4833.0,0.00015615,2]
[362340582,1748207015643,-167.0,0.00015615,2]
[362340583,1748207015666,-167.73,0.00015773,2]
[362340584,1748207015689,-23.27,0.00016986,2]
[362340585,1748207084873,-176.85,0.00015767,2]
[362340586,1748207084896,-4751.15,0.00016816,2]
[362340587,1748207157723,-167.21,0.00015769,2]
[362340588,1748207157752,-248.85,0.00016816,2]
[362340589,1748207157780,-13.94,0.00016982,2]
[362340591,1748207225960,-157.32,0.00015763,2]
[362340592,1748207225984,-4960.68,0.00016812,2]
[362340593,1748207296340,-159.05,0.00015766,2]
[362340594,1748207296366,-39.32,0.00016812,2]
[362340595,1748207296390,-167.63,0.00016979,2]
[362340613,1748207432300,-161.22,0.00015784,2]
[362340615,1748207432310,-3893.58960072,0.00016809,2]
[362340617,1748207432319,-214.97,0.00016998,2]
[362340619,1748207432329,-500.0,0.00018081,2]
[362340620,1748207432339,-300.0,0.00018123,2]
[362340622,1748207432348,-300.0,0.00018123,2]
[362340624,1748207432358,-1200.0,0.00018123,2]
[362340625,1748207432368,-10891.6363367,0.00018124,2]
[362340627,1748207432377,-268.71,0.00018212,2]
[362340629,1748207432387,-1396.51347975,0.000189,2]
[362340630,1748207432396,-203.0,0.00018932,3]
[362340632,1748207432406,-187.36639071,0.00019078,2]
[362340634,1748207432416,-1087.18545698,0.00019078,2]
[362340636,1748207432426,-19681.42781614,0.00019078,2]
[362340637,1748207432435,-1396.51347961,0.00019107,2]
[362340639,1748207432445,-351.17276311,0.00019155,2]
[362340641,1748207432454,-207.4,0.00019166,2]
[362340642,1748207432463,-12212.72,0.00019168,3]
[362340644,1748207432474,-6106.36,0.00019168,3]
[362340646,1748207432483,-3053.18,0.00019168,3]
[362340647,1748207432493,-1526.59,0.00019168,3]
[362340649,1748207432503,-763.29,0.00019168,3]
[362340651,1748207432512,-13736.65055679,0.00019178,2]
[362340652,1748207432521,-13913.44955534,0.00019178,3]
[362340654,1748207432531,-430.0,0.00019178,2]
[362340656,1748207432541,-564.19115529,0.00019178,2]
[362340658,1748207432550,-430.0,0.00019178,2]
[362340660,1748207432560,-430.0,0.00019178,2]
[362340662,1748207432570,-430.0,0.00019178,2]
[362340663,1748207432579,-430.0,0.00019178,2]
[362340665,1748207432589,-430.0,0.00019178,2]
[362340666,1748207432599,-422.53181784,0.00019178,2]
[362340668,1748207432608,-430.0,0.00019178,2]
[362340670,1748207432618,-430.0,0.00019178,2]
[362340672,1748207432628,-430.0,0.00019178,2]
[362340674,1748207432637,-430.0,0.00019178,2]
[362340675,1748207432646,-430.0,0.00019178,2]
[362340677,1748207432656,-430.0,0.00019178,2]
[362340679,1748207432670,-430.0,0.00019178,2]
[362340681,1748207432679,-430.0,0.00019178,2]
[362340683,1748207432688,-430.0,0.00019178,2]
[362340685,1748207432711,-430.0,0.00019178,2]
[362340687,1748207432722,-430.0,0.00019178,2]
[362340689,1748207432732,-430.0,0.00019178,2]
[362340691,1748207432742,-430.0,0.00019178,2]
[362340693,1748207432752,-430.0,0.00019178,2]
[362340695,1748207432762,-430.0,0.00019178,2]
[362340697,1748207432773,-430.0,0.00019178,2]
[362340699,1748207432782,-430.0,0.00019178,2]
[362340700,1748207432792,-430.0,0.00019178,2]
[362340702,1748207432802,-430.0,0.00019178,2]
[362340704,1748207432815,-490.52,0.00019178,2]
[362340706,1748207432825,-1047.96,0.00019178,2]
[362340708,1748207432835,-430.0,0.00019178,2]
[362340710,1748207432844,-430.0,0.00019178,2]
[362340712,1748207432853,-430.0,0.00019178,2]
[362340713,1748207432865,-430.0,0.00019178,2]
[362340715,1748207432875,-430.0,0.00019178,2]
[362340717,1748207432885,-364.80785142,0.00019178,2]
[362340719,1748207432894,-430.0,0.00019178,2]
[362340721,1748207432904,-2824.0,0.00019178,2]
[362340722,1748207432915,-430.0,0.00019178,2]
[362340724,1748207432924,-430.0,0.00019178,2]
[362340726,1748207432934,-430.0,0.00019178,2]
[362340727,1748207432944,-430.0,0.00019178,2]
[362340728,1748207432954,-484.05,0.00019178,2]
[362340729,1748207432965,-430.0,0.00019178,2]
[362340730,1748207432975,-871.24,0.00019178,2]
[362340731,1748207432985,-430.0,0.00019178,2]
[362340732,1748207432995,-430.0,0.00019178,2]
[362340733,1748207433005,-430.0,0.00019178,2]
[362340734,1748207433015,-493.99742727,0.00019178,2]
[362340735,1748207433024,-2305.7,0.00019178,2]
[362340736,1748207433034,-430.0,0.00019178,2]
[362340737,1748207433044,-430.0,0.00019178,2]
[362340738,1748207433054,-239.98479044,0.00019178,2]
[362340739,1748207433064,-233.75759186,0.00019178,2]
[362340740,1748207433073,-430.64084423,0.00019178,2]
[362340741,1748207433083,-430.0,0.00019178,2]
[362340742,1748207433093,-430.0,0.00019178,2]
[362340743,1748207433103,-1468.36,0.00019178,2]
[362340744,1748207433113,-430.0,0.00019178,2]
[362340745,1748207433123,-430.52180674,0.00019178,2]
[362340746,1748207433132,-430.0,0.00019178,2]
[362340747,1748207433142,-430.5881229,0.00019178,2]
[362340748,1748207433152,-430.0,0.00019178,2]
[362340749,1748207433162,-430.0,0.00019178,2]
[362340750,1748207433172,-430.0,0.00019178,2]
[362340751,1748207433182,-430.0,0.00019178,2]
[362340752,1748207433192,-431.24401611,0.00019178,2]
[362340753,1748207433202,-431.8041462,0.00019178,2]
[362340754,1748207433211,-430.0,0.00019178,2]
[362340755,1748207433221,-818.93715392,0.00019178,2]
[362340756,1748207433237,-757.11284608,0.00019178,2]
[362340757,1748207433246,-430.0,0.00019178,2]
[362340758,1748207433256,-431.69121681,0.00019178,2]
[362340759,1748207433266,-430.0,0.00019178,2]
[362340760,1748207433276,-430.0,0.00019178,2]
[362340761,1748207433286,-430.0,0.00019178,2]
[362340762,1748207433296,-430.0,0.00019178,2]
[362340763,1748207433305,-569.7445766,0.00019178,2]
[362340764,1748207433320,-450.0,0.00019178,2]
[362340765,1748207433330,-430.0,0.00019178,2]
[362340766,1748207433340,-430.0,0.00019178,2]
[362340767,1748207433349,-430.0,0.00019178,2]
[362340768,1748207433359,-706.49,0.00019178,2]
[362340769,1748207433370,-430.0,0.00019178,2]
[362340770,1748207433380,-432.81831017,0.00019178,2]
[362340771,1748207433390,-430.0,0.00019178,2]
[362340772,1748207433401,-430.0,0.00019178,2]
[362340773,1748207433411,-430.0,0.00019178,2]
[362340774,1748207433422,-508.49204427,0.00019178,2]
[362340775,1748207433432,-430.0,0.00019178,2]
[362340776,1748207433442,-430.0,0.00019178,2]
[362340777,1748207433453,-430.0,0.00019178,2]
[362340778,1748207433462,-430.0,0.00019178,2]